{"text_format":"1","workbook":"xlsx","n_sheets":2,"sheets":["Input Senarai Gaji","templat_butiran"],"not_rendered":{"charts":0,"images":0,"macros":1,"external_links":0,"defined_names":7,"comments":0,"pivot_tables":0},"unopened":[],"bounds":{"document_bytes":16777216,"sheet_cells":100000,"rows_first":2000,"rows_last":500,"rows_between":2000,"halvings":0,"cell_chars":16384,"cell_head_chars":4096},"cells_cut":0,"cells_raw":0,"read":"whole","date_system":"1900"}

{"sheet":"Input Senarai Gaji","index":0,"n_rows":13,"n_cols":24,"rows_kept":13,"cut":false,"hidden":false,"merged":[]}
[null,"KALKULATOR SENARAI GAJI",null,null,null,null,null,null,null,null,"TEMPOH TAMAT:",41372,null,"NAMA SYARIKAT:",null,"ADVENTURE WORKS"]
[]
[null,"ID","Nama Pekerja","Kerja Waktu Biasa","Waktu Percutian","Waktu\nSakit","Waktu Lebih Masa","Kadar Lebih Masa","Gaji\nKasar","Cukai dan Potongan","Potongan\nLain","Gaji Bersih"," ","Upah Jam","Status\nCukai","Elaun\nPersekutuan","Cukai\nDalam Negeri","Cukai\nPendapatan Persekutuan","Cukai Keselamatan\nSosial","Cukai\nPerubatan","Jumlah Cukai Ditahan","Potongan Insurans","Potongan Biasa Lain","Jumlah Potongan\nBiasa"]
[null,1001,"Tony Smith",50,5,1,null,null,{"$f":"SUM(Employees[[#This Row],[Kerja Waktu Biasa]:[Waktu\nSakit]])*Employees[[#This Row],[Upah Jam]]+Employees[[#This Row],[Waktu Lebih Masa]]*Employees[[#This Row],[Kadar Lebih Masa]]","v":560},{"$f":"Employees[[#This Row],[Gaji\nKasar]]*Employees[[#This Row],[Jumlah Cukai Ditahan]] + Employees[[#This Row],[Jumlah Potongan\nBiasa]]","v":273.08000000000004},20,{"$f":"Employees[[#This Row],[Gaji\nKasar]]-Employees[[#This Row],[Cukai dan Potongan]]-Employees[[#This Row],[Potongan\nLain]]","v":266.91999999999996},null,10,1,4,2.3E-2,0.28000000000000003,6.3E-2,1.4500000000000001E-2,{"$f":"SUM(Employees[[#This Row],[Cukai\nDalam Negeri]:[Cukai\nPerubatan]])","v":0.38050000000000006},20,40,{"$f":"SUM(Employees[[#This Row],[Potongan Insurans]:[Potongan Biasa Lain]])","v":60}]
[null,1002,"David Jones",40,null,null,null,null,{"$f":"SUM(Employees[[#This Row],[Kerja Waktu Biasa]:[Waktu\nSakit]])*Employees[[#This Row],[Upah Jam]]+Employees[[#This Row],[Waktu Lebih Masa]]*Employees[[#This Row],[Kadar Lebih Masa]]","v":320},{"$f":"Employees[[#This Row],[Gaji\nKasar]]*Employees[[#This Row],[Jumlah Cukai Ditahan]] + Employees[[#This Row],[Jumlah Potongan\nBiasa]]","v":131.76000000000002},null,{"$f":"Employees[[#This Row],[Gaji\nKasar]]-Employees[[#This Row],[Cukai dan Potongan]]-Employees[[#This Row],[Potongan\nLain]]","v":188.23999999999998},null,8,1,1,2.3E-2,0.28000000000000003,6.3E-2,1.4500000000000001E-2,{"$f":"SUM(Employees[[#This Row],[Cukai\nDalam Negeri]:[Cukai\nPerubatan]])","v":0.38050000000000006},0,10,{"$f":"SUM(Employees[[#This Row],[Potongan Insurans]:[Potongan Biasa Lain]])","v":10}]
[null,1003,"Denise Smith",35,3,null,null,null,{"$f":"SUM(Employees[[#This Row],[Kerja Waktu Biasa]:[Waktu\nSakit]])*Employees[[#This Row],[Upah Jam]]+Employees[[#This Row],[Waktu Lebih Masa]]*Employees[[#This Row],[Kadar Lebih Masa]]","v":532},{"$f":"Employees[[#This Row],[Gaji\nKasar]]*Employees[[#This Row],[Jumlah Cukai Ditahan]] + Employees[[#This Row],[Jumlah Potongan\nBiasa]]","v":240.42600000000004},null,{"$f":"Employees[[#This Row],[Gaji\nKasar]]-Employees[[#This Row],[Cukai dan Potongan]]-Employees[[#This Row],[Potongan\nLain]]","v":291.57399999999996},null,14,1,3,2.3E-2,0.28000000000000003,6.3E-2,1.4500000000000001E-2,{"$f":"SUM(Employees[[#This Row],[Cukai\nDalam Negeri]:[Cukai\nPerubatan]])","v":0.38050000000000006},18,20,{"$f":"SUM(Employees[[#This Row],[Potongan Insurans]:[Potongan Biasa Lain]])","v":38}]
[null,1008,"Sebastien Motte",50,5,1,null,null,{"$f":"SUM(Employees[[#This Row],[Kerja Waktu Biasa]:[Waktu\nSakit]])*Employees[[#This Row],[Upah Jam]]+Employees[[#This Row],[Waktu Lebih Masa]]*Employees[[#This Row],[Kadar Lebih Masa]]","v":1120},{"$f":"Employees[[#This Row],[Gaji\nKasar]]*Employees[[#This Row],[Jumlah Cukai Ditahan]] + Employees[[#This Row],[Jumlah Potongan\nBiasa]]","v":441.16000000000008},null,{"$f":"Employees[[#This Row],[Gaji\nKasar]]-Employees[[#This Row],[Cukai dan Potongan]]-Employees[[#This Row],[Potongan\nLain]]","v":678.83999999999992},null,20,1,0,2.3E-2,0.28000000000000003,6.3E-2,1.4500000000000001E-2,{"$f":"SUM(Employees[[#This Row],[Cukai\nDalam Negeri]:[Cukai\nPerubatan]])","v":0.38050000000000006},15,null,{"$f":"SUM(Employees[[#This Row],[Potongan Insurans]:[Potongan Biasa Lain]])","v":15}]
[null,1011,"Isabelle Scemla",40,null,null,2,15,{"$f":"SUM(Employees[[#This Row],[Kerja Waktu Biasa]:[Waktu\nSakit]])*Employees[[#This Row],[Upah Jam]]+Employees[[#This Row],[Waktu Lebih Masa]]*Employees[[#This Row],[Kadar Lebih Masa]]","v":430},{"$f":"Employees[[#This Row],[Gaji\nKasar]]*Employees[[#This Row],[Jumlah Cukai Ditahan]] + Employees[[#This Row],[Jumlah Potongan\nBiasa]]","v":223.61500000000004},null,{"$f":"Employees[[#This Row],[Gaji\nKasar]]-Employees[[#This Row],[Cukai dan Potongan]]-Employees[[#This Row],[Potongan\nLain]]","v":206.38499999999996},null,10,1,0,2.3E-2,0.28000000000000003,6.3E-2,1.4500000000000001E-2,{"$f":"SUM(Employees[[#This Row],[Cukai\nDalam Negeri]:[Cukai\nPerubatan]])","v":0.38050000000000006},20,40,{"$f":"SUM(Employees[[#This Row],[Potongan Insurans]:[Potongan Biasa Lain]])","v":60}]
[null,1012,"David Bristol",40,5,1,null,null,{"$f":"SUM(Employees[[#This Row],[Kerja Waktu Biasa]:[Waktu\nSakit]])*Employees[[#This Row],[Upah Jam]]+Employees[[#This Row],[Waktu Lebih Masa]]*Employees[[#This Row],[Kadar Lebih Masa]]","v":552},{"$f":"Employees[[#This Row],[Gaji\nKasar]]*Employees[[#This Row],[Jumlah Cukai Ditahan]] + Employees[[#This Row],[Jumlah Potongan\nBiasa]]","v":270.03600000000006},null,{"$f":"Employees[[#This Row],[Gaji\nKasar]]-Employees[[#This Row],[Cukai dan Potongan]]-Employees[[#This Row],[Potongan\nLain]]","v":281.96399999999994},null,12,1,4,2.3E-2,0.28000000000000003,6.3E-2,1.4500000000000001E-2,{"$f":"SUM(Employees[[#This Row],[Cukai\nDalam Negeri]:[Cukai\nPerubatan]])","v":0.38050000000000006},20,40,{"$f":"SUM(Employees[[#This Row],[Potongan Insurans]:[Potongan Biasa Lain]])","v":60}]
[null,1025,"Anne Weiler",36,null,2,1,18,{"$f":"SUM(Employees[[#This Row],[Kerja Waktu Biasa]:[Waktu\nSakit]])*Employees[[#This Row],[Upah Jam]]+Employees[[#This Row],[Waktu Lebih Masa]]*Employees[[#This Row],[Kadar Lebih Masa]]","v":474},{"$f":"Employees[[#This Row],[Gaji\nKasar]]*Employees[[#This Row],[Jumlah Cukai Ditahan]] + Employees[[#This Row],[Jumlah Potongan\nBiasa]]","v":225.35700000000003},25,{"$f":"Employees[[#This Row],[Gaji\nKasar]]-Employees[[#This Row],[Cukai dan Potongan]]-Employees[[#This Row],[Potongan\nLain]]","v":223.64299999999997},null,12,1,2,2.3E-2,0.28000000000000003,6.3E-2,1.4500000000000001E-2,{"$f":"SUM(Employees[[#This Row],[Cukai\nDalam Negeri]:[Cukai\nPerubatan]])","v":0.38050000000000006},25,20,{"$f":"SUM(Employees[[#This Row],[Potongan Insurans]:[Potongan Biasa Lain]])","v":45}]
[null,1032,"Luka Abrus",40,5,1,null,null,{"$f":"SUM(Employees[[#This Row],[Kerja Waktu Biasa]:[Waktu\nSakit]])*Employees[[#This Row],[Upah Jam]]+Employees[[#This Row],[Waktu Lebih Masa]]*Employees[[#This Row],[Kadar Lebih Masa]]","v":460},{"$f":"Employees[[#This Row],[Gaji\nKasar]]*Employees[[#This Row],[Jumlah Cukai Ditahan]] + Employees[[#This Row],[Jumlah Potongan\nBiasa]]","v":175.03000000000003},50,{"$f":"Employees[[#This Row],[Gaji\nKasar]]-Employees[[#This Row],[Cukai dan Potongan]]-Employees[[#This Row],[Potongan\nLain]]","v":234.96999999999997},null,10,1,3,2.3E-2,0.28000000000000003,6.3E-2,1.4500000000000001E-2,{"$f":"SUM(Employees[[#This Row],[Cukai\nDalam Negeri]:[Cukai\nPerubatan]])","v":0.38050000000000006},null,null,{"$f":"SUM(Employees[[#This Row],[Potongan Insurans]:[Potongan Biasa Lain]])","v":0}]
[null,1049,"David Ludwig",40,1,null,null,null,{"$f":"SUM(Employees[[#This Row],[Kerja Waktu Biasa]:[Waktu\nSakit]])*Employees[[#This Row],[Upah Jam]]+Employees[[#This Row],[Waktu Lebih Masa]]*Employees[[#This Row],[Kadar Lebih Masa]]","v":615},{"$f":"Employees[[#This Row],[Gaji\nKasar]]*Employees[[#This Row],[Jumlah Cukai Ditahan]] + Employees[[#This Row],[Jumlah Potongan\nBiasa]]","v":259.00750000000005},23,{"$f":"Employees[[#This Row],[Gaji\nKasar]]-Employees[[#This Row],[Cukai dan Potongan]]-Employees[[#This Row],[Potongan\nLain]]","v":332.99249999999995},null,15,1,2,2.3E-2,0.28000000000000003,6.3E-2,1.4500000000000001E-2,{"$f":"SUM(Employees[[#This Row],[Cukai\nDalam Negeri]:[Cukai\nPerubatan]])","v":0.38050000000000006},25,null,{"$f":"SUM(Employees[[#This Row],[Potongan Insurans]:[Potongan Biasa Lain]])","v":25}]
[null,"Jumlah",{"$f":"SUBTOTAL(103,Employees[Nama Pekerja])","v":9},{"$f":"SUBTOTAL(109,Employees[Kerja Waktu Biasa])","v":371},{"$f":"SUBTOTAL(109,Employees[Waktu Percutian])","v":24},{"$f":"SUBTOTAL(109,Employees[Waktu\nSakit])","v":6},{"$f":"SUBTOTAL(109,Employees[Waktu Lebih Masa])","v":3},null,{"$f":"SUBTOTAL(109,Employees[Gaji\nKasar])","v":5063},{"$f":"SUBTOTAL(109,Employees[Cukai dan Potongan])","v":2239.4715000000001},{"$f":"SUBTOTAL(109,Employees[Potongan\nLain])","v":118},{"$f":"SUBTOTAL(109,Employees[Gaji Bersih])","v":2705.5284999999994},null,null,null,null,null,null,null,null,null,{"$f":"SUBTOTAL(109,Employees[Potongan Insurans])","v":143},{"$f":"SUBTOTAL(109,Employees[Potongan Biasa Lain])","v":170},{"$f":"SUBTOTAL(109,Employees[Jumlah Potongan\nBiasa])","v":313}]

{"sheet":"templat_butiran","index":1,"n_rows":47,"n_cols":13,"rows_kept":47,"cut":false,"hidden":true,"merged":[[2,7,2,8],[14,7,14,8],[26,7,26,8],[38,7,38,8],[38,11,38,12],[26,11,26,12],[14,11,14,12],[2,11,2,12],[2,3,2,4],[14,3,14,4],[26,3,26,4],[38,3,38,4],[44,2,44,3],[45,2,45,3],[32,2,32,3],[33,2,33,3],[20,2,20,3],[21,2,21,3]]}
[]
[null,null,{"$f":"CompanyName","v":"ADVENTURE WORKS"}]
[null,null,"TEMPOH",{"$f":"PeriodEnding","v":41372},null,null,"NAMA",{"$f":"IFERROR(INDEX(Employees[Nama Pekerja],Stub),\"\")","v":"Tony Smith"},null,null,"ID PEKERJA",{"$f":"IFERROR(INDEX(Employees[ID],Stub),\"\")","v":1001}]
[null,null,"Status Cukai",null,{"$f":"IFERROR(INDEX(Employees[Status\nCukai],Stub),\"\")","v":1},null,"Elaun Persekutuan (Daripada W-4)",null,{"$f":"IFERROR(INDEX(Employees[Elaun\nPersekutuan],Stub),\"\")","v":4},null,"Waktu Telah Bekerja",null,{"$f":"IFERROR(INDEX(Employees[Kerja Waktu Biasa],Stub),\"\")","v":50}]
[null,null,"Kadar Jam",null,{"$f":"IFERROR(INDEX(Employees[Upah Jam],Stub),\"\")","v":10},null,"Kadar Lebih Masa",null,{"$f":"IFERROR(INDEX(Employees[Kadar Lebih Masa],Stub),\"\")","v":0},null,"Waktu Sakit",null,{"$f":"IFERROR(INDEX(Employees[Waktu\nSakit],Stub),\"\")","v":1}]
[null,null,"Cukai Keselamatan Sosial",null,{"$f":"IFERROR(INDEX(Employees[Cukai Keselamatan\nSosial],Stub)  *  INDEX(Employees[Gaji\nKasar],Stub),\"\")","v":35.28},null,"Cukai Pendapatan Persekutuan ",null,{"$f":"IFERROR(INDEX(Employees[Cukai\nPendapatan Persekutuan],Stub)  *  INDEX(Employees[Gaji\nKasar],Stub),\"\")","v":156.80000000000001},null,"Waktu Percutian",null,{"$f":"IFERROR(INDEX(Employees[Waktu Percutian],Stub),\"\")","v":5}]
[null,null,"Cukai Perubatan ",null,{"$f":"IFERROR(INDEX(Employees[Cukai\nPerubatan],Stub)  *  INDEX(Employees[Gaji\nKasar],Stub),\"\")","v":8.120000000000001},null,"Cukai Dalam Negeri ",null,{"$f":"IFERROR(INDEX(Employees[Cukai\nDalam Negeri],Stub)  *  INDEX(Employees[Gaji\nKasar],Stub),\"\")","v":12.879999999999999},null,"Waktu Lebih Masa",null,{"$f":"IFERROR(INDEX(Employees[Waktu Lebih Masa],Stub),\"\")","v":0}]
[null,null,"Potongan Insurans",null,{"$f":"IFERROR(INDEX(Employees[Potongan Insurans],Stub),\"\")","v":20},null,"Potongan Biasa Lain",null,{"$f":"IFERROR(INDEX(Employees[Potongan Biasa Lain],Stub),\"\")","v":40},null,"Gaji Kasar",null,{"$f":"IFERROR(INDEX(Employees[Gaji\nKasar],Stub),\"\")","v":560}]
[null,null,"Jumlah Cukai dan",null,{"$f":"IFERROR(INDEX(Employees[Cukai dan Potongan],Stub),\"\")","v":273.08000000000004},null,"Potongan Lain",null,{"$f":"IFERROR(INDEX(Employees[Potongan\nLain],Stub),\"\")","v":20},null,"Jumlah Cukai dan Potongan ",null,{"$f":"IFERROR(INDEX(Employees[Cukai dan Potongan],Stub)  +  INDEX(Employees[Potongan\nLain],Stub),\"\")","v":293.08000000000004}]
[null,null,"Potongan Biasa "]
[null,null,null,null,null,null,null,null,null,null,"GAJI BERSIH",null,{"$f":"IFERROR(INDEX(Employees[Gaji Bersih],Stub),\"\")","v":266.91999999999996}]
[]
[]
[null,null,{"$f":"CompanyName","v":"ADVENTURE WORKS"}]
[null,null,"TEMPOH",{"$f":"PeriodEnding","v":41372},null,null,"NAMA",{"$f":"IFERROR(INDEX(Employees[Nama Pekerja],Stub),\"\")","v":"David Jones"},null,null,"ID PEKERJA",{"$f":"IFERROR(INDEX(Employees[ID],Stub),\"\")","v":1002}]
[null,null,"Status Cukai",null,{"$f":"IFERROR(INDEX(Employees[Status\nCukai],Stub),\"\")","v":1},null,"Elaun Persekutuan (Daripada W-4)",null,{"$f":"IFERROR(INDEX(Employees[Elaun\nPersekutuan],Stub),\"\")","v":1},null,"Waktu Telah Bekerja",null,{"$f":"IFERROR(INDEX(Employees[Kerja Waktu Biasa],Stub),\"\")","v":40}]
[null,null,"Kadar Jam",null,{"$f":"IFERROR(INDEX(Employees[Upah Jam],Stub),\"\")","v":8},null,"Kadar Lebih Masa",null,{"$f":"IFERROR(INDEX(Employees[Kadar Lebih Masa],Stub),\"\")","v":0},null,"Waktu Sakit",null,{"$f":"IFERROR(INDEX(Employees[Waktu\nSakit],Stub),\"\")","v":0}]
[null,null,"Cukai Keselamatan Sosial",null,{"$f":"IFERROR(INDEX(Employees[Cukai Keselamatan\nSosial],Stub)  *  INDEX(Employees[Gaji\nKasar],Stub),\"\")","v":20.16},null,"Cukai Pendapatan Persekutuan ",null,{"$f":"IFERROR(INDEX(Employees[Cukai\nPendapatan Persekutuan],Stub)  *  INDEX(Employees[Gaji\nKasar],Stub),\"\")","v":89.600000000000009},null,"Waktu Percutian",null,{"$f":"IFERROR(INDEX(Employees[Waktu Percutian],Stub),\"\")","v":0}]
[null,null,"Cukai Perubatan ",null,{"$f":"IFERROR(INDEX(Employees[Cukai\nPerubatan],Stub)  *  INDEX(Employees[Gaji\nKasar],Stub),\"\")","v":4.6400000000000006},null,"Cukai Dalam Negeri ",null,{"$f":"IFERROR(INDEX(Employees[Cukai\nDalam Negeri],Stub)  *  INDEX(Employees[Gaji\nKasar],Stub),\"\")","v":7.3599999999999994},null,"Waktu Lebih Masa",null,{"$f":"IFERROR(INDEX(Employees[Waktu Lebih Masa],Stub),\"\")","v":0}]
[null,null,"Potongan Insurans",null,{"$f":"IFERROR(INDEX(Employees[Potongan Insurans],Stub),\"\")","v":0},null,"Potongan Biasa Lain",null,{"$f":"IFERROR(INDEX(Employees[Potongan Biasa Lain],Stub),\"\")","v":10},null,"Gaji Kasar",null,{"$f":"IFERROR(INDEX(Employees[Gaji\nKasar],Stub),\"\")","v":320}]
[null,null,"Jumlah Cukai dan",null,{"$f":"IFERROR(INDEX(Employees[Cukai dan Potongan],Stub),\"\")","v":131.76000000000002},null,"Potongan Lain",null,{"$f":"IFERROR(INDEX(Employees[Potongan\nLain],Stub),\"\")","v":0},null,"Jumlah Cukai dan Potongan ",null,{"$f":"IFERROR(INDEX(Employees[Cukai dan Potongan],Stub)  +  INDEX(Employees[Potongan\nLain],Stub),\"\")","v":131.76000000000002}]
[null,null,"Potongan Biasa "]
[null,null,null,null,null,null,null,null,null,null,"GAJI BERSIH",null,{"$f":"IFERROR(INDEX(Employees[Gaji Bersih],Stub),\"\")","v":188.23999999999998}]
[]
[]
[null,null,{"$f":"CompanyName","v":"ADVENTURE WORKS"}]
[null,null,"TEMPOH",{"$f":"PeriodEnding","v":41372},null,null,"NAMA",{"$f":"IFERROR(INDEX(Employees[Nama Pekerja],Stub),\"\")","v":"Denise Smith"},null,null,"ID PEKERJA",{"$f":"IFERROR(INDEX(Employees[ID],Stub),\"\")","v":1003}]
[null,null,"Status Cukai",null,{"$f":"IFERROR(INDEX(Employees[Status\nCukai],Stub),\"\")","v":1},null,"Elaun Persekutuan (Daripada W-4)",null,{"$f":"IFERROR(INDEX(Employees[Elaun\nPersekutuan],Stub),\"\")","v":3},null,"Waktu Telah Bekerja",null,{"$f":"IFERROR(INDEX(Employees[Kerja Waktu Biasa],Stub),\"\")","v":35}]
[null,null,"Kadar Jam",null,{"$f":"IFERROR(INDEX(Employees[Upah Jam],Stub),\"\")","v":14},null,"Kadar Lebih Masa",null,{"$f":"IFERROR(INDEX(Employees[Kadar Lebih Masa],Stub),\"\")","v":0},null,"Waktu Sakit",null,{"$f":"IFERROR(INDEX(Employees[Waktu\nSakit],Stub),\"\")","v":0}]
[null,null,"Cukai Keselamatan Sosial",null,{"$f":"IFERROR(INDEX(Employees[Cukai Keselamatan\nSosial],Stub)  *  INDEX(Employees[Gaji\nKasar],Stub),\"\")","v":33.515999999999998},null,"Cukai Pendapatan Persekutuan ",null,{"$f":"IFERROR(INDEX(Employees[Cukai\nPendapatan Persekutuan],Stub)  *  INDEX(Employees[Gaji\nKasar],Stub),\"\")","v":148.96},null,"Waktu Percutian",null,{"$f":"IFERROR(INDEX(Employees[Waktu Percutian],Stub),\"\")","v":3}]
[null,null,"Cukai Perubatan ",null,{"$f":"IFERROR(INDEX(Employees[Cukai\nPerubatan],Stub)  *  INDEX(Employees[Gaji\nKasar],Stub),\"\")","v":7.7140000000000004},null,"Cukai Dalam Negeri ",null,{"$f":"IFERROR(INDEX(Employees[Cukai\nDalam Negeri],Stub)  *  INDEX(Employees[Gaji\nKasar],Stub),\"\")","v":12.236000000000001},null,"Waktu Lebih Masa",null,{"$f":"IFERROR(INDEX(Employees[Waktu Lebih Masa],Stub),\"\")","v":0}]
[null,null,"Potongan Insurans",null,{"$f":"IFERROR(INDEX(Employees[Potongan Insurans],Stub),\"\")","v":18},null,"Potongan Biasa Lain",null,{"$f":"IFERROR(INDEX(Employees[Potongan Biasa Lain],Stub),\"\")","v":20},null,"Gaji Kasar",null,{"$f":"IFERROR(INDEX(Employees[Gaji\nKasar],Stub),\"\")","v":532}]
[null,null,"Jumlah Cukai dan",null,{"$f":"IFERROR(INDEX(Employees[Cukai dan Potongan],Stub),\"\")","v":240.42600000000004},null,"Potongan Lain",null,{"$f":"IFERROR(INDEX(Employees[Potongan\nLain],Stub),\"\")","v":0},null,"Jumlah Cukai dan Potongan ",null,{"$f":"IFERROR(INDEX(Employees[Cukai dan Potongan],Stub)  +  INDEX(Employees[Potongan\nLain],Stub),\"\")","v":240.42600000000004}]
[null,null,"Potongan Biasa "]
[null,null,null,null,null,null,null,null,null,null,"GAJI BERSIH",null,{"$f":"IFERROR(INDEX(Employees[Gaji Bersih],Stub),\"\")","v":291.57399999999996}]
[]
[]
[null,null,{"$f":"CompanyName","v":"ADVENTURE WORKS"}]
[null,null,"TEMPOH",{"$f":"PeriodEnding","v":41372},null,null,"NAMA",{"$f":"IFERROR(INDEX(Employees[Nama Pekerja],Stub),\"\")","v":"Sebastien Motte"},null,null,"ID PEKERJA",{"$f":"IFERROR(INDEX(Employees[ID],Stub),\"\")","v":1008}]
[null,null,"Status Cukai",null,{"$f":"IFERROR(INDEX(Employees[Status\nCukai],Stub),\"\")","v":1},null,"Elaun Persekutuan (Daripada W-4)",null,{"$f":"IFERROR(INDEX(Employees[Elaun\nPersekutuan],Stub),\"\")","v":0},null,"Waktu Telah Bekerja",null,{"$f":"IFERROR(INDEX(Employees[Kerja Waktu Biasa],Stub),\"\")","v":50}]
[null,null,"Kadar Jam",null,{"$f":"IFERROR(INDEX(Employees[Upah Jam],Stub),\"\")","v":20},null,"Kadar Lebih Masa",null,{"$f":"IFERROR(INDEX(Employees[Kadar Lebih Masa],Stub),\"\")","v":0},null,"Waktu Sakit",null,{"$f":"IFERROR(INDEX(Employees[Waktu\nSakit],Stub),\"\")","v":1}]
[null,null,"Cukai Keselamatan Sosial",null,{"$f":"IFERROR(INDEX(Employees[Cukai Keselamatan\nSosial],Stub)  *  INDEX(Employees[Gaji\nKasar],Stub),\"\")","v":70.56},null,"Cukai Pendapatan Persekutuan ",null,{"$f":"IFERROR(INDEX(Employees[Cukai\nPendapatan Persekutuan],Stub)  *  INDEX(Employees[Gaji\nKasar],Stub),\"\")","v":313.60000000000002},null,"Waktu Percutian",null,{"$f":"IFERROR(INDEX(Employees[Waktu Percutian],Stub),\"\")","v":5}]
[null,null,"Cukai Perubatan ",null,{"$f":"IFERROR(INDEX(Employees[Cukai\nPerubatan],Stub)  *  INDEX(Employees[Gaji\nKasar],Stub),\"\")","v":16.240000000000002},null,"Cukai Dalam Negeri ",null,{"$f":"IFERROR(INDEX(Employees[Cukai\nDalam Negeri],Stub)  *  INDEX(Employees[Gaji\nKasar],Stub),\"\")","v":25.759999999999998},null,"Waktu Lebih Masa",null,{"$f":"IFERROR(INDEX(Employees[Waktu Lebih Masa],Stub),\"\")","v":0}]
[null,null,"Potongan Insurans",null,{"$f":"IFERROR(INDEX(Employees[Potongan Insurans],Stub),\"\")","v":15},null,"Potongan Biasa Lain",null,{"$f":"IFERROR(INDEX(Employees[Potongan Biasa Lain],Stub),\"\")","v":0},null,"Gaji Kasar",null,{"$f":"IFERROR(INDEX(Employees[Gaji\nKasar],Stub),\"\")","v":1120}]
[null,null,"Jumlah Cukai dan",null,{"$f":"IFERROR(INDEX(Employees[Cukai dan Potongan],Stub),\"\")","v":441.16000000000008},null,"Potongan Lain",null,{"$f":"IFERROR(INDEX(Employees[Potongan\nLain],Stub),\"\")","v":0},null,"Jumlah Cukai dan Potongan ",null,{"$f":"IFERROR(INDEX(Employees[Cukai dan Potongan],Stub)  +  INDEX(Employees[Potongan\nLain],Stub),\"\")","v":441.16000000000008}]
[null,null,"Potongan Biasa "]
[null,null,null,null,null,null,null,null,null,null,"GAJI BERSIH",null,{"$f":"IFERROR(INDEX(Employees[Gaji Bersih],Stub),\"\")","v":678.83999999999992}]